bitfinex/quotes_ETHUSD_20260314
["timestamp","ask_amount","ask_price","bid_price","bid_amount"]
[1773483258992,0.50310138,2068.3,2067.9,1.71576481]
[1773483259877,0.50310138,2068.3,2067.9,1.66740658]
[1773483263782,0.50310138,2068.3,2068.0,0.0011]
[1773483264084,0.001,2068.1,2068.0,0.0011]
[1773483266978,0.001,2068.1,2068.0,0.47368325]
[1773483267185,0.50310138,2068.3,2068.0,0.47368325]
[1773483267882,0.45471741,2068.3,2068.1,1.20883903]
[1773483268372,0.001,2068.4,2068.1,1.68142228]
[1773483268874,0.4594189,2068.4,2068.1,1.68142228]
[1773483269257,0.4594189,2068.4,2068.1,1.72977584]
[1773483270878,0.80498253,2068.7,2068.2,0.47258325]
[1773483273176,0.80498253,2068.7,2068.3,1.20872213]
[1773483273363,0.80498253,2068.7,2068.3,1.68130538]
[1773483275560,0.4584189,2068.6,2068.3,1.68130538]
[1773483276066,0.001,2068.5,2068.3,1.68130538]
[1773483281099,0.34656363,2068.7,2068.4,0.47258325]
[1773483281268,0.50680287,2068.9,2068.5,0.47258325]
[1773483281269,0.4584189,2068.9,2068.5,0.47258325]
[1773483281468,0.50680287,2068.9,2068.5,0.47258325]
[1773483284273,0.50680287,2068.9,2068.5,1.68114572]
[1773483288001,0.001,2068.7,2068.5,1.68114572]
[1773483290609,0.45844284,2068.7,2068.4,1.20972684]
[1773483295597,0.44309645,2069.0,2068.5,0.51330954]
[1773483295908,0.45477215,2068.9,2068.5,0.51330954]
[1773483299713,0.45477215,2068.9,2068.7,0.0011]
[1773483304418,0.45477215,2068.9,2068.2,0.0011]
[1773483304419,0.45130323,2068.7,2068.2,0.0011]
[1773483304618,0.45130323,2068.7,2068.1,0.0011]
[1773483304821,0.45130323,2068.7,2067.9,1.21005037]
[1773483304822,0.4996872,2068.7,2067.9,1.21005037]
[1773483305334,0.4996872,2068.7,2068.0,1.20999693]
[1773483307824,0.45130323,2068.5,2068.0,1.20999693]
[1773483310130,0.45130323,2068.3,2068.0,0.0011]
[1773483312727,0.45130323,2068.3,2068.2,0.0011]
[1773483315326,0.4996872,2068.3,2068.2,0.0011]
[1773483317626,0.45130323,2068.3,2068.2,0.0011]
[1773483321807,0.45362769,2068.2,2068.0,0.0011]
[1773483322017,0.50201166,2068.2,2068.0,0.0011]
[1773483323532,0.50201166,2068.2,2067.8,1.69368405]
[1773483323533,0.50201166,2068.2,2067.8,0.0011]
[1773483323839,0.50201166,2068.2,2067.6,1.2102019]
[1773483324040,0.50201166,2068.2,2067.6,0.0011]
[1773483324253,0.45362769,2068.0,2067.6,0.0011]
[1773483324913,0.45362769,2068.0,2067.8,0.0011]
[1773483325723,0.001,2068.1,2067.8,0.48469469]
[1773483326527,0.45462769,2068.1,2067.8,0.0011]
[1773483330341,0.45362769,2068.0,2067.8,0.0011]
[1773483331953,0.50201166,2068.0,2067.8,0.0011]
[1773483337457,0.50201166,2068.0,2067.9,0.0011]
[1773483338228,0.04838397,2068.0,2067.9,0.0011]
[1773483339361,0.50201166,2068.0,2067.9,0.0011]
[1773483341135,0.04838397,2068.0,2067.9,0.0011]
[1773483349061,0.04838397,2068.0,2067.9,0.45422541]
[1773483349264,0.04938397,2068.1,2067.9,0.45422541]
[1773483350571,0.50690125,2068.1,2067.6,1.21022116]
[1773483350786,0.45751728,2068.0,2067.6,0.0011]
[1773483350942,0.50590125,2067.9,2067.6,0.0011]
[1773483352284,0.48076775,2067.8,2067.4,0.0011]
[1773483352455,0.48076775,2067.7,2067.1,1.68786994]
[1773483352970,0.48076775,2067.5,2067.0,0.0011]
[1773483354877,0.48076775,2067.3,2067.0,0.0011]
[1773483358781,2.59209917,2067.6,2067.0,0.47957607]
[1773483359080,0.52915172,2067.6,2067.0,0.52795536]
[1773483359790,0.48076775,2067.6,2067.0,0.52795536]
[1773483360583,0.48076775,2067.6,2067.2,0.47957607]
[1773483360953,0.48076775,2067.5,2067.2,0.47957607]
[1773483361382,1.68992602,2067.6,2067.3,0.47847607]
[1773483361980,0.48076775,2067.6,2067.3,0.47847607]
[1773483362703,1.68990153,2067.6,2067.3,0.47847607]
[1773483364815,0.48076775,2067.6,2067.3,1.68777097]
[1773483365380,0.48076775,2067.6,2067.3,0.47847607]
[1773483366068,0.52915172,2067.6,2067.3,0.47847607]
[1773483370098,1.73828697,2067.6,2067.3,0.47847607]
[1773483372501,1.73828697,2067.6,2067.5,0.0011]
[1773483374500,1.73828697,2067.6,2067.3,0.0011]
[1773483374501,0.48076775,2067.5,2067.2,0.0011]
[1773483374797,0.52915172,2067.4,2067.2,0.0011]
[1773483375097,0.04838397,2067.4,2067.2,0.47957607]
[1773483375303,1.73919658,2067.8,2067.2,0.47957607]
[1773483375684,1.25842883,2067.8,2067.2,0.47957607]
[1773483375883,0.48076775,2067.7,2067.2,0.47957607]
[1773483376083,0.52915172,2067.6,2067.2,0.47957607]
[1773483381211,1.73831755,2067.6,2067.2,0.47957607]
[1773483382809,0.45157093,2067.5,2067.2,0.47957607]
[1773483383006,0.04838397,2067.4,2067.2,0.47957607]
[1773483384807,0.04938397,2067.4,2067.2,0.47957607]
[1773483386118,0.5009549,2067.4,2067.2,0.0011]
[1773483388118,1.20930682,2067.3,2067.2,0.0011]
[1773483388298,1.71024641,2067.4,2067.2,0.0011]
[1773483388614,0.5009549,2067.4,2067.2,0.0011]
[1773483388916,1.71020604,2067.4,2067.2,0.0011]
[1773483389515,0.5009549,2067.4,2067.2,0.0011]
[1773483391730,0.45157093,2067.3,2067.2,0.0011]
[1773483393025,0.45157093,2067.3,2067.0,0.0011]
[1773483393339,0.45157093,2067.3,2066.8,0.4761555]
[1773483393699,0.45157093,2067.1,2066.7,0.0011]
[1773483394034,0.45157093,2067.1,2066.5,0.4761555]
[1773483395819,0.45157093,2066.9,2066.5,0.4761555]
[1773483397904,0.45157093,2066.8,2066.7,0.0011]
[1773483400260,0.45157093,2066.7,2066.3,2.61219009]
[1773483400538,0.45157093,2066.7,2066.3,0.0011]
[1773483401727,0.45157093,2066.7,2066.0,0.0011]
[1773483401918,0.45157093,2066.6,2066.0,0.4772555]
[1773483402443,0.45157093,2066.4,2065.6,0.52456758]
[1773483403167,0.45157093,2066.4,2065.5,1.21036068]
[1773483403346,0.45157093,2066.4,2065.6,0.4761555]
[1773483403739,0.45157093,2066.2,2065.6,0.4761555]
[1773483404369,0.45157093,2066.4,2065.8,0.4761555]
[1773483407351,0.45157093,2066.3,2065.8,1.68632281]
[1773483407676,0.45157093,2066.3,2065.9,0.4761555]
[1773483408753,0.4788034,2066.4,2065.9,0.4761555]
[1773483410071,0.04838397,2066.4,2066.1,0.49732052]
[1773483410271,0.04838397,2066.5,2066.1,0.49732052]
[1773483410481,0.52718737,2066.5,2066.1,0.49732052]
[1773483410677,0.52718737,2066.5,2066.0,1.21006776]
[1773483411175,0.52718737,2066.5,2066.0,1.21116776]
[1773483411374,0.52718737,2066.5,2066.0,0.0011]
[1773483412086,0.48497238,2066.4,2066.0,0.0011]
[1773483412259,0.48497238,2066.2,2066.0,0.0011]
[1773483412577,0.53335635,2066.2,2066.0,0.0011]
[1773483413159,0.48497238,2066.2,2065.8,1.66809385]
[1773483413474,0.04838397,2066.1,2065.9,0.45683611]
[1773483414284,0.04838397,2066.1,2065.5,0.0011]
[1773483414285,0.48497238,2066.0,2065.5,0.0011]
[1773483414458,0.48497238,2065.5,2065.2,0.003]
[1773483414871,0.48497238,2065.5,2064.8,1.42182462]
[1773483415072,0.48497238,2065.5,2064.8,0.003]
[1773483415261,0.76852923,2065.4,2064.8,0.003]
[1773483415463,0.48497238,2065.3,2064.5,1.41899683]
[1773483415662,0.48497238,2065.3,2064.6,1.02505608]
[1773483415983,0.48497238,2065.7,2064.7,0.20809132]
[1773483416284,0.48497238,2065.5,2065.0,0.20809132]
[1773483416581,0.48497238,2065.7,2065.0,0.20809132]
[1773483416786,1.71829214,2065.8,2065.1,0.25651512]
[1773483417660,1.71829214,2065.8,2065.1,0.20809132]
[1773483417892,2.20326452,2065.8,2065.1,0.20809132]
[1773483418096,1.71829214,2065.8,2065.3,0.20809132]
[1773483418308,1.71829214,2065.8,2065.5,0.20809132]
[1773483418706,2.20326452,2065.8,2065.4,1.21041928]
[1773483418912,2.20326452,2065.8,2065.4,1.4185106]
[1773483419214,2.20326452,2065.8,2065.5,0.20809132]
[1773483419385,1.71829214,2065.8,2065.5,0.20809132]
[1773483420311,1.71829214,2065.8,2065.6,1.41839341]
[1773483420517,1.51829214,2065.8,2065.7,0.20809132]
[1773483421501,6.46,2066.4,2065.7,0.00809132]
[1773483421502,0.49595433,2066.2,2065.7,0.00809132]
[1773483421814,0.04838397,2066.1,2065.7,0.00809132]
[1773483422321,1.20981817,2066.5,2065.7,0.00809132]
[1773483422322,0.49595433,2066.5,2066.0,0.00809132]
[1773483423488,0.001,2066.2,2066.0,0.00809132]
[1773483423889,0.49595433,2066.6,2066.0,0.00809132]
[1773483424313,0.49595433,2066.6,2066.2,0.00809132]
[1773483424697,0.49595433,2067.0,2066.2,0.00809132]
[1773483424901,0.49595433,2066.9,2066.2,0.00809132]
[1773483425096,0.49595433,2066.9,2066.1,1.21000919]
[1773483425303,0.49595433,2066.9,2066.1,1.21810051]
[1773483425504,0.49595433,2066.9,2066.1,1.21000919]
[1773483425705,0.49595433,2066.9,2066.2,0.00809132]
[1773483427823,0.49595433,2066.8,2066.2,1.20989727]
[1773483428013,0.49595433,2066.8,2066.3,0.00809132]
[1773483429157,0.49595433,2067.0,2066.3,0.00809132]
[1773483429933,0.49595433,2067.0,2066.5,0.00809132]
[1773483430230,0.49695433,2067.2,2066.5,0.00809132]
[1773483430428,1.70631985,2067.2,2066.5,0.00809132]
[1773483430632,0.49695433,2067.2,2066.5,0.00809132]
[1773483432528,0.49695433,2067.2,2066.6,1.20971644]
[1773483432729,0.49695433,2067.2,2066.6,1.21780776]
[1773483434322,0.49695433,2067.2,2066.7,0.00809132]
[1773483435236,0.49695433,2067.2,2066.8,1.20959938]
[1773483435437,0.49695433,2067.2,2066.7,1.21770409]
[1773483435638,0.001,2067.0,2066.7,1.21770409]
[1773483439340,0.001,2067.0,2066.7,1.2660904]
[1773483440537,0.001,2067.0,2066.8,0.00809132]
[1773483440738,0.001,2067.2,2066.9,0.00809132]
[1773483441852,0.001,2067.2,2067.0,1.20948234]
[1773483442367,0.001,2067.2,2067.0,1.21757366]
[1773483444244,0.001,2067.2,2067.1,0.00809132]
[1773483446574,0.49595433,2067.7,2067.3,0.00709132]
[1773483447069,0.49645433,2067.6,2067.3,0.00709132]
[1773483448465,0.49645433,2067.6,2067.2,0.00709132]
[1773483449289,0.49645433,2067.5,2067.0,1.2094401]
[1773483449789,0.49645433,2067.5,2066.8,1.2166502]
[1773483451292,1.20924833,2067.4,2066.8,1.21664066]
[1773483451497,0.49645433,2067.3,2066.8,1.216689]
[1773483453694,1.70576256,2067.3,2066.8,1.216689]
[1773483453864,0.49645433,2067.3,2066.8,1.216689]
[1773483454505,0.49645433,2067.3,2066.9,0.00709132]
[1773483456132,0.49645433,2067.3,2066.9,1.20951647]
[1773483456300,0.49645433,2067.2,2066.8,1.20955445]
[1773483459518,0.49645433,2067.2,2067.0,0.0011]
[1773483459713,0.49745433,2067.2,2067.0,0.0011]
[1773483462708,0.49645433,2067.1,2067.0,0.0011]
[1773483463230,0.001,2067.2,2067.0,0.0011]
[1773483463427,0.49745433,2067.2,2067.0,0.0011]
[1773483463929,0.49645433,2067.1,2067.0,0.0011]
[1773483465934,0.51493816,2067.4,2067.0,0.0011]
[1773483467247,0.51593816,2067.4,2067.0,0.04947929]
[1773483467942,0.001,2067.4,2067.0,0.04947929]
[1773483469048,1.772,2067.8,2067.0,0.04947929]
[1773483469049,0.51593816,2067.8,2067.1,1.20942383]
[1773483469220,0.51493816,2067.7,2067.1,1.20942383]
[1773483469542,0.51593816,2067.7,2067.1,1.20942383]
[1773483469749,0.51493816,2067.7,2067.1,1.20942383]
[1773483470321,0.51493816,2067.5,2067.1,1.20942383]
[1773483471752,0.51493816,2067.4,2067.0,0.0011]
[1773483471951,0.51593816,2067.4,2067.2,0.0011]
[1773483472124,0.51593816,2067.3,2067.2,0.0011]
[1773483472442,0.51593816,2067.3,2066.8,0.04948397]
[1773483472644,0.51593816,2067.2,2066.8,0.04948397]
[1773483474252,0.51593816,2067.2,2066.9,1.20954085]
[1773483474658,0.51593816,2067.2,2066.8,0.04948397]
[1773483474842,0.51593816,2067.2,2066.8,1.259065]
[1773483475453,0.51593816,2067.2,2066.8,1.21068103]
[1773483476458,0.51593816,2067.2,2066.8,0.0011]
[1773483477561,0.001,2067.2,2066.8,0.0011]
[1773483478562,0.51593816,2067.2,2066.8,0.0011]
[1773483479160,0.51593816,2067.1,2066.8,0.0011]
[1773483481261,0.001,2067.1,2066.8,0.0011]
[1773483482763,0.51593816,2067.0,2066.8,0.0011]
[1773483483058,0.51493816,2067.0,2066.8,0.0011]
[1773483488066,0.51593816,2067.0,2066.8,0.0011]
[1773483488463,0.51593816,2067.2,2066.8,0.0011]
[1773483493583,0.001,2067.1,2066.8,1.21069938]
[1773483495759,0.001,2067.1,2067.0,0.0011]
[1773483497477,0.51593816,2067.1,2067.0,0.0011]
[1773483499582,0.51493816,2067.1,2067.0,0.0011]
[1773483500380,0.001,2067.1,2067.0,0.0011]
[1773483503578,0.001,2067.2,2067.0,0.0011]
[1773483504867,0.001,2067.2,2067.0,0.04947929]
[1773483507274,0.001,2067.2,2067.1,1.20942383]
[1773483508786,0.001,2067.3,2067.1,1.20942383]
[1773483508958,0.002,2067.3,2067.1,1.20942383]
[1773483512790,0.002,2067.3,2067.2,0.04837461]
[1773483513791,0.002,2067.3,2067.2,1.25773993]
[1773483516914,0.51593816,2067.3,2066.4,0.0011]
[1773483517196,0.49075086,2067.1,2066.4,0.0011]
[1773483517394,0.49075086,2067.1,2066.5,1.21087379]
[1773483517593,0.49075086,2067.1,2066.5,0.0011]
[1773483518169,0.49075086,2066.9,2066.5,0.0011]
[1773483519097,0.49075086,2066.9,2066.5,0.0022]
[1773483520805,0.49075086,2066.9,2066.8,0.0011]
[1773483525676,0.49575455,2066.8,2066.5,0.0011]
[1773483525882,0.49575455,2066.8,2066.6,0.0011]
[1773483526483,0.49575455,2066.8,2066.7,0.0011]
[1773483526775,0.49575455,2066.8,2066.5,1.25925879]
[1773483527580,0.49575455,2066.8,2066.6,0.0011]
[1773483529105,0.47388793,2066.8,2066.6,0.0011]
[1773483532198,0.47388793,2066.8,2066.7,0.0011]
[1773483532712,0.51851743,2067.0,2066.7,0.0022]
[1773483532916,0.51851743,2067.0,2066.8,0.0011]
[1773483533207,0.47014282,2067.0,2066.8,0.0011]
[1773483534007,0.001,2067.1,2066.9,0.49369704]
[1773483534715,0.001,2067.1,2066.9,0.0011]
[1773483534914,0.47114282,2067.1,2066.9,0.0011]
[1773483537309,0.47114282,2067.1,2067.0,0.0011]
[1773483537514,0.001,2067.1,2066.9,0.49369704]
[1773483537914,0.47114282,2067.1,2066.9,0.0011]
[1773483539090,0.47014282,2067.0,2066.7,0.0011]
[1773483539510,0.47014282,2067.0,2066.7,1.21075681]
[1773483540018,0.47014282,2067.0,2066.7,1.70335385]
[1773483541022,0.47014282,2067.0,2066.7,0.49369704]
[1773483543209,0.47014282,2067.0,2066.7,1.70335011]
[1773483544423,0.001,2066.8,2066.7,1.70335011]
[1773483545546,0.001,2066.8,2066.7,0.0011]
[1773483549024,0.001,2066.8,2066.7,1.2107579]
[1773483549223,0.001,2066.8,2066.7,1.25914421]
[1773483555336,0.001,2066.8,2066.7,1.75174125]
[1773483557437,0.001,2067.1,2066.8,0.49259704]
[1773483557637,0.001,2067.1,2067.0,0.49259704]
[1773483559437,0.001,2067.1,2067.0,1.70207938]
[1773483559737,0.001,2067.3,2067.0,1.70207938]
[1773483561434,0.48941192,2067.0,2066.7,0.0011]
[1773483563113,0.48941192,2067.0,2066.5,0.0011]
[1773483563743,0.48941192,2066.8,2066.5,0.0011]
[1773483565943,0.48941192,2067.0,2066.5,0.53493796]
[1773483567726,0.48941192,2067.0,2066.7,0.0011]
[1773483568089,0.49041192,2066.9,2066.7,0.04948631]
[1773483569251,0.001,2066.9,2066.7,0.04948631]
[1773483569551,0.001,2066.9,2066.7,0.53493328]
[1773483571953,0.001,2066.9,2066.7,1.74458635]
[1773483572154,0.001,2066.9,2066.8,1.69504635]
[1773483573032,0.001,2066.9,2066.7,1.25909774]
[1773483573438,0.49041192,2066.9,2066.7,0.04948631]
[1773483573849,0.49041192,2066.9,2066.7,0.0011]
[1773483578367,0.48941192,2066.8,2066.7,0.0011]
[1773483583120,0.001,2066.9,2066.7,0.0011]
[1773483583260,0.001,2066.9,2066.7,0.48654697]
[1773483591569,0.001,2066.9,2066.8,0.0011]
[1773483594687,0.001,2066.9,2066.8,0.52362922]
[1773483594893,1.66100913,2067.2,2066.8,0.52362922]
[1773483596907,0.45160583,2067.1,2066.8,0.52362922]
[1773483599521,0.45160583,2067.1,2066.8,1.7332272]
[1773483600513,0.001,2067.3,2066.9,0.47414525]
[1773483601300,1.66077723,2067.6,2066.9,0.47414525]
[1773483601501,1.20907288,2067.7,2067.1,0.47414525]
[1773483601702,1.66067871,2067.7,2067.1,0.47414525]
[1773483602621,0.45160583,2067.7,2067.1,0.47414525]
[1773483603000,0.45160583,2067.5,2067.1,0.47414525]
[1773483603199,0.45260583,2067.5,2067.1,0.47414525]
[1773483604738,0.45260583,2067.5,2067.2,1.20936532]
[1773483606595,0.45260583,2067.5,2067.1,1.68352264]
[1773483606897,0.45260583,2067.5,2067.0,4.8377915]
[1773483607097,0.45260583,2067.5,2067.0,5.31193675]
[1773483610120,0.45260583,2067.5,2067.1,0.47414525]
[1773483613632,0.45260583,2067.5,2067.1,1.68352735]
[1773483614732,0.45260583,2067.5,2067.3,0.0011]
[1773483616333,0.001,2067.5,2067.3,0.47524525]
[1773483616508,0.001,2067.5,2067.4,0.04836993]
[1773483616836,0.001,2067.5,2067.4,0.52251518]
[1773483619046,0.001,2067.5,2067.4,0.47414525]
[1773483619867,0.001,2067.5,2067.3,1.73286841]
[1773483621734,0.49822753,2067.5,2067.3,0.04947227]
[1773483621958,0.49822753,2067.5,2067.3,0.0011]
[1773483623337,0.49722753,2067.7,2067.4,0.4595312]
[1773483623555,0.49722753,2067.7,2067.3,0.0011]
[1773483625322,0.49722753,2067.7,2067.3,1.25877538]
[1773483626122,1.20907393,2067.7,2067.3,1.25877538]
[1773483626462,0.49722753,2067.6,2067.3,1.25877538]
[1773483627256,0.49722753,2067.6,2067.5,0.0011]
[1773483634261,1.20907686,2067.7,2067.3,0.0011]
[1773483634262,0.49722753,2067.5,2067.3,0.0011]
[1773483635734,0.49722753,2067.4,2067.0,0.0011]
[1773483637154,0.49722753,2067.3,2067.0,0.0011]
[1773483639161,0.49722753,2067.3,2067.2,0.0011]
[1773483649071,0.49722753,2067.3,2066.5,0.0011]
[1773483649072,0.47525265,2067.2,2066.5,0.0011]
[1773483649247,0.47525265,2067.2,2066.5,1.21086926]
[1773483649874,0.47525265,2067.2,2066.5,0.0011]
[1773483650085,0.47525265,2067.1,2066.5,1.21086947]
[1773483651179,0.47525265,2066.9,2066.5,1.21086947]
[1773483652079,0.47525265,2066.9,2066.6,0.45777853]
[1773483656177,0.46224574,2067.2,2066.7,0.45777853]
[1773483656364,0.04837461,2067.1,2066.7,0.50616484]
[1773483657077,0.51062035,2067.1,2066.7,0.50616484]
[1773483659086,0.46224574,2067.0,2066.7,0.04838631]
[1773483659284,0.46224574,2067.0,2066.5,0.0011]
[1773483660854,0.46224574,2066.8,2066.5,0.0011]
[1773483661587,0.46224574,2066.7,2066.2,1.21104495]
[1773483662208,0.46224574,2066.7,2066.2,0.0011]
[1773483662380,0.46224574,2066.7,2066.2,1.21105061]
[1773483663198,0.46224574,2066.7,2066.2,0.0011]
[1773483663380,0.46224574,2066.7,2066.4,0.0011]
[1773483663594,0.46224574,2066.6,2066.4,0.0011]
[1773483675314,0.001,2066.5,2066.4,0.0011]
[1773483675617,0.46324574,2066.5,2066.4,0.0011]
[1773483677899,1.67302072,2066.5,2066.4,0.0011]
[1773483678105,0.001,2066.5,2066.4,0.0011]
[1773483680115,0.46324574,2066.5,2066.4,0.0011]
[1773483682802,0.001,2066.5,2066.4,0.0011]
[1773483684324,0.001,2066.5,2066.4,0.4560329]
[1773483685898,0.001,2066.5,2066.4,0.0011]
[1773483687338,6.58427206,2066.9,2066.4,0.0011]
[1773483687339,1.21045442,2067.1,2066.4,0.4560329]
[1773483687496,1.21045442,2067.1,2066.6,0.4549329]
[1773483688122,1.67415704,2067.1,2066.6,0.4549329]
[1773483688502,1.67415704,2067.1,2066.6,1.20971456]
[1773483688711,1.67415704,2067.1,2066.7,0.4549329]
[1773483693931,0.001,2067.1,2066.8,0.4549329]
[1773483695214,0.001,2067.1,2066.9,0.4549329]
[1773483697139,0.001,2067.4,2067.0,0.4549329]
[1773483697344,1.21025399,2067.4,2067.0,0.4549329]
[1773483698443,0.001,2067.4,2067.0,0.4549329]
[1773483699330,1.21025372,2067.4,2067.0,0.4549329]
[1773483699729,0.001,2067.4,2067.0,1.2094721]
[1773483699922,0.001,2067.4,2067.1,0.4549329]
[1773483700441,0.001,2067.4,2067.1,1.66435673]
[1773483700738,0.46470262,2067.4,2067.1,0.4549329]
[1773483701730,1.67400025,2067.4,2067.1,0.4549329]
[1773483702640,1.67400025,2067.4,2066.9,1.66446724]
[1773483702856,0.46370262,2067.3,2066.9,0.4549329]
[1773483703147,0.46370262,2067.3,2066.9,1.66446711]
[1773483704536,0.46370262,2067.2,2066.9,0.4549329]
[1773483706030,1.67397697,2067.4,2067.0,0.4549329]
[1773483706226,0.46470262,2067.4,2067.0,0.47911786]
[1773483706728,0.001,2067.4,2067.1,0.4549329]
[1773483707650,0.001,2067.4,2067.2,0.02417326]
[1773483707879,0.001,2067.4,2067.2,0.47910616]
[1773483709665,0.001,2067.4,2067.3,0.49971378]
[1773483711254,0.001,2067.4,2066.8,0.4629306]
[1773483711255,0.48881183,2067.4,2066.8,0.4629306]
[1773483711454,0.48881183,2067.4,2066.8,1.67252056]
[1773483712228,0.48881183,2067.4,2066.8,0.4629306]
[1773483712455,0.48881183,2067.4,2067.3,0.0011]
[1773483713057,1.69806016,2067.4,2067.3,0.0011]
[1773483724563,0.48781183,2067.3,2067.0,0.4640306]
[1773483724762,0.54827717,2067.3,2067.0,0.4640306]
[1773483725149,0.001,2067.2,2067.0,0.4640306]
[1773483726252,0.001,2067.2,2067.0,0.0011]
[1773483726654,1.69817715,2067.2,2067.0,0.0011]
[1773483727353,0.48881183,2067.2,2067.0,0.0011]
[1773483729950,0.001,2067.2,2067.0,0.4640306]
[1773483730149,0.001,2067.2,2067.0,0.48821322]
[1773483733366,0.001,2067.2,2067.0,0.4640306]
[1773483736477,0.001,2067.2,2067.1,0.02418145]
[1773483738080,0.001,2067.2,2067.0,0.4640306]
[1773483738281,0.48881183,2067.2,2067.0,0.0011]
[1773483741386,0.48881183,2067.2,2067.0,0.49742666]
[1773483741387,0.001,2067.2,2067.0,0.49742666]
[1773483746081,0.001,2067.2,2067.0,0.0011]
[1773483748565,0.001,2067.1,2067.0,0.0011]
[1773483750811,0.001,2067.2,2067.1,0.49632666]
[1773483756190,0.001,2067.2,2067.1,0.52050577]
[1773483756918,0.001,2067.2,2067.1,0.49632666]
[1773483758715,5.31871369,2067.6,2067.2,0.49632666]
[1773483758716,0.48206509,2067.6,2067.2,0.49632666]
[1773483758890,1.20907288,2067.7,2067.2,0.49632666]
[1773483759090,1.69113797,2067.7,2067.2,0.49632666]
[1773483759415,1.69113797,2067.7,2067.2,0.53258567]
[1773483759789,0.001,2067.8,2067.3,0.49632666]
[1773483760011,0.48306509,2067.8,2067.3,0.49632666]
[1773483760515,0.48306509,2067.8,2067.3,0.49742666]
[1773483760718,0.001,2067.5,2067.3,0.49742666]
[1773483760888,0.48306509,2067.8,2067.4,0.49632666]
[1773483761096,0.001,2067.8,2067.4,0.49632666]
[1773483762325,0.001,2067.8,2067.5,0.49632666]
[1773483763918,0.48206509,2068.0,2067.5,0.49632666]
[1773483764491,0.48206509,2068.0,2067.6,1.70545802]
[1773483771295,0.48206509,2068.0,2067.6,0.49632666]
[1773483771296,0.45147612,2067.9,2067.6,0.49632666]
[1773483771897,0.45147612,2067.9,2067.5,1.68868058]
[1773483772502,0.45147612,2067.9,2067.8,0.0011]
[1773483776228,1.66043206,2067.9,2067.8,0.0011]
[1773483776419,0.45147612,2067.8,2067.5,0.0011]
[1773483778033,1.66050376,2067.8,2067.5,0.0011]
[1773483778401,0.45147612,2067.8,2067.5,0.0011]
[1773483780836,0.45147612,2067.7,2067.5,0.0011]
[1773483783035,0.45147612,2067.6,2067.5,0.0011]
[1773483788639,1.66060748,2067.6,2067.5,0.0011]
[1773483789139,0.45147612,2067.6,2067.5,0.0011]
[1773483790023,1.66060748,2067.6,2067.5,0.0011]
[1773483791319,0.45147612,2067.7,2067.5,0.0011]
[1773483791917,0.45147612,2067.6,2067.5,0.0011]
[1773483792244,0.45147612,2067.6,2067.2,0.0011]
[1773483794548,0.45147612,2067.5,2067.2,0.0011]
[1773483795716,0.45147612,2067.5,2067.2,0.48060341]
[1773483796744,0.45147612,2067.5,2067.4,0.0011]
[1773483798543,0.001,2067.6,2067.4,0.0011]
[1773483798749,1.66161159,2067.6,2067.4,0.0011]
[1773483799233,0.45147612,2067.5,2067.4,0.0011]
[1773483799843,0.45147612,2067.5,2067.0,0.0011]
[1773483800873,0.45147612,2067.3,2067.0,0.0011]
[1773483804353,1.68887234,2067.5,2067.0,0.54772339]
[1773483806628,1.68887234,2067.5,2067.1,0.4982441]
[1773483808657,0.47963752,2067.4,2067.1,0.4982441]
[1773483808957,1.68889749,2067.4,2067.1,0.4982441]
[1773483809531,0.47963752,2067.4,2067.1,0.4982441]
[1773483810257,0.47963752,2067.4,2067.3,0.0011]
[1773483812599,5.31733939,2067.6,2067.3,0.0011]
[1773483812868,0.47963752,2067.5,2067.3,0.0011]
[1773483814875,1.68883533,2067.5,2067.3,0.0011]
[1773483818067,0.47963752,2067.4,2067.3,0.0011]
[1773483823561,1.68980864,2067.6,2067.3,0.4993441]
[1773483823762,1.68978025,2067.6,2067.3,0.4993441]
[1773483826774,0.001,2067.6,2067.3,0.4993441]
[1773483827144,0.001,2067.6,2067.4,0.4982441]
[1773483828874,0.48070615,2067.6,2067.3,0.45229605]
[1773483829180,0.48070615,2067.6,2067.3,0.0011]
[1773483830184,1.68988389,2067.6,2067.3,0.0011]
[1773483831289,1.68988389,2067.6,2067.3,0.50060841]
[1773483834279,0.001,2067.4,2067.3,0.50060841]
[1773483838090,0.001,2067.4,2067.3,0.0011]
[1773483840796,0.001,2067.4,2067.3,0.50060841]
[1773483849505,0.001,2067.4,2067.3,0.0011]
[1773483852592,0.46540041,2067.4,2067.3,0.0011]
[1773483853301,0.46540041,2067.4,2067.0,0.0011]
[1773483853885,0.46540041,2067.4,2067.0,0.50060841]
[1773483854517,1.67465394,2067.4,2067.0,0.50060841]
[1773483854720,0.46440041,2067.3,2067.0,0.50060841]
[1773483857027,0.46440041,2067.3,2067.2,0.0011]
[1773483860397,0.46440041,2067.2,2066.9,0.0011]
[1773483861402,0.47038658,2067.0,2066.9,0.0011]
[1773483864103,1.67986892,2067.0,2066.9,0.0011]
[1773483867308,0.47038658,2067.0,2066.9,0.0011]
[1773483868423,1.67986892,2067.0,2066.9,0.0011]
[1773483884257,0.47038658,2066.9,2066.6,1e-08]
[1773483885860,1.20948234,2067.0,2066.6,1e-08]
[1773483886372,1.67986892,2067.0,2066.6,1e-08]
[1773483892555,1.67986892,2067.0,2066.8,0.0011]
[1773483895464,0.45442493,2066.9,2066.8,0.0011]
[1773483895871,0.45442493,2066.9,2066.5,0.0011]
[1773483897853,1.66402431,2066.8,2066.5,0.0011]
[1773483898073,1.801,2066.7,2066.5,0.0011]
[1773483901468,1.801,2066.7,2066.5,0.45686696]
[1773483902284,0.001,2067.1,2066.5,0.45686696]
[1773483902486,8.263,2067.3,2066.6,0.45576696]
[1773483902979,1.803,2067.3,2066.6,0.45576696]
[1773483903389,1.803,2067.3,2066.8,0.45576696]
[1773483904563,3.01230743,2067.3,2066.8,0.45576696]
[1773483904767,0.001,2066.9,2066.8,0.45576696]
[1773483906984,0.001,2066.9,2066.8,1.66536634]
[1773483910688,0.45542493,2066.9,2066.7,0.0011]
[1773483926109,0.001,2066.9,2066.7,0.0011]
[1773483929018,0.4969798,2066.9,2066.7,0.0011]
[1773483935519,0.4959798,2066.8,2066.7,0.0011]
[1773483935891,0.4959798,2066.8,2066.5,0.0011]
[1773483937728,1.70562569,2066.8,2066.5,0.0011]
[1773483938303,1.21057836,2066.9,2066.5,0.40291873]
[1773483938492,0.001,2066.9,2066.5,0.40291873]
[1773483938830,1.21054961,2066.9,2066.5,0.40291873]
[1773483939130,1.70652941,2066.9,2066.5,0.40291873]